fUSD/lending_fUSD_20260224
["ID","MTS","AMOUNT","RATE_DAILY","PERIOD"]
[406615481,1771974686719,-4000.0,0.0005035,4]
[406615482,1771974686728,-150.0,0.0005035,30]
[406615483,1771974686738,-150.0,0.0005035,30]
[406615484,1771974686746,-150.0,0.0005035,30]
[406615485,1771974686756,-150.0,0.0005035,30]
[406615486,1771974686766,-150.0,0.0005035,30]
[406615487,1771974686775,-500.0,0.0005041,120]
[406615488,1771974686784,-500.0,0.00050467,61]
[406615489,1771974686794,-1065.43,0.00050472,120]
[406615490,1771974686804,-152.07548897,0.00050527,120]
[406615491,1771974686813,-1500.0,0.0005054,10]
[406615492,1771974686823,-650.0,0.0005054,10]
[406615493,1771974686832,-1104.0,0.00050561,90]
[406615494,1771974686841,-1362.78659317,0.000506,120]
[406615495,1771974686851,-152.0,0.00050619,18]
[406615496,1771974686860,-150.0,0.00050644,30]
[406615497,1771974686869,-500.0,0.00050733,120]
[406615498,1771974686879,-1065.43,0.0005088,120]
[406615499,1771974686888,-155.63271317,0.0005088,2]
[406615500,1771974686898,-150.0,0.0005088,30]
[406615501,1771974686907,-633.93576628,0.000509,120]
[406615502,1771974686916,-500.0,0.00050958,120]
[406615503,1771974686929,-1200.0,0.00050958,120]
[406615504,1771974686938,-19820.58274478,0.00051,2]
[406615505,1771974686948,-15700.59980064,0.00051,3]
[406615506,1771974686957,-171.80399645,0.00051,3]
[406615507,1771974686968,-10179.41725522,0.00051,2]
[406615508,1771974686977,-150.0,0.00051,120]
[406615509,1771974686987,-262.4,0.00051,40]
[406615510,1771974686996,-2225.80456927,0.00051,30]
[406615511,1771974687007,-1246.43,0.00051,30]
[406615512,1771974687017,-337.93768117,0.00051,120]
[406615513,1771974687028,-1000000.0,0.00051,85]
[406615514,1771974687038,-1622.07517447,0.00051,120]
[406615515,1771974687047,-1329.46423011,0.00051,120]
[406615516,1771974687056,-301638.67,0.00051,105]
[406615517,1771974687065,-2031.0,0.00051,120]
[406615518,1771974687075,-1016.0,0.00051,120]
[406615519,1771974687084,-200000.0,0.00051001,92]
[406615520,1771974687094,-200000.0,0.00051001,93]
[406615521,1771974687104,-99800.0,0.00051002,100]
[406615522,1771974687113,-200000.0,0.0005101,120]
[406615523,1771974687123,-200000.0,0.00051011,115]
[406615524,1771974687132,-200000.0,0.00051012,95]
[406615525,1771974687141,-200000.0,0.00051013,120]
[406615526,1771974687151,-200000.0,0.00051014,120]
[406615527,1771974687161,-200000.0,0.00051015,120]
[406615528,1771974687170,-200000.0,0.00051016,110]
[406615529,1771974687180,-200000.0,0.00051016,90]
[406615530,1771974687189,-1265.554,0.0005106,120]
[406615531,1771974687198,-1210.0,0.00051063,120]
[406615532,1771974687208,-750.0,0.00051088,10]
[406615533,1771974687217,-2000.0,0.000512,2]
[406615534,1771974687227,-150.0,0.00051233,30]
[406615535,1771974687236,-1129.27473156,0.00051234,120]
[406615536,1771974687246,-193.1,0.00051241,120]
[406615537,1771974687256,-179.34140514,0.00051247,6]
[406615538,1771974687265,-1065.43,0.00051287,120]
[406615539,1771974687274,-154.0,0.000513,120]
[406615540,1771974687283,-500.0,0.00051356,60]
[406615541,1771974687293,-600.0,0.00051356,60]
[406615542,1771974687302,-154.0,0.000514,120]
[406615543,1771974687312,-762.0,0.000515,120]
[406615544,1771974687321,-500.0,0.00051506,120]
[406615545,1771974687331,-515.0,0.00051606,20]
[406615546,1771974687341,-850.0,0.00051636,10]
[406615547,1771974687350,-150.0,0.00051675,30]
[406615548,1771974687359,-150.0,0.00051675,30]
[406615549,1771974687369,-150.0,0.00051675,30]
[406615550,1771974687378,-1065.43,0.00051695,120]
[406615551,1771974687387,-211.51645103,0.0005178,120]
[406615552,1771974687396,-150.0,0.00051822,30]
[406615553,1771974687406,-152.0,0.00051846,19]
[406615554,1771974687416,-150.0,0.00051883,120]
[406615555,1771974687558,-152.07548897,0.00051893,120]
[406615556,1771974687568,-600.0,0.00051904,60]
[406615557,1771974687577,-1013.16376714,0.0005191,10]
[406615558,1771974687587,-12585.97911115,0.00051914,120]
[406615559,1771974687596,-150.0,0.0005194,30]
[406615560,1771974687606,-150.0,0.0005194,2]
[406615561,1771974687616,-947.84651971,0.0005195,120]
[406615562,1771974687625,-563.42620004,0.00051954,90]
[406615563,1771974687635,-1174.77007003,0.0005198,110]
[406615564,1771974687644,-318.47497048,0.0005199,60]
[406615565,1771974687654,-150.0,0.00052,2]
[406615566,1771974687663,-1000.07827345,0.00052,15]
[406615567,1771974687672,-160.47014808,0.00052,3]
[406615568,1771974687682,-1000000.0,0.00052,102]
[406615569,1771974687691,-997000.0,0.00052,102]
[406615570,1771974687702,-150.0,0.00052,120]
[406615571,1771974687711,-940000.0,0.00052,103]
[406615572,1771974687721,-592.91838903,0.00052,120]
[406615573,1771974687731,-565.8435794,0.00052,30]
[406615574,1771974687740,-331.07703389,0.00052,120]
[406615575,1771974687750,-1858.62522645,0.00052,120]
[406615576,1771974687760,-519.66,0.00052,30]
[406615577,1771974687769,-1602.40344574,0.00052,120]
[406615578,1771974687779,-1000000.0,0.00052,50]
[406615579,1771974687788,-1000000.0,0.00052,51]
[406615580,1771974687798,-1000000.0,0.00052,50]
[406615581,1771974687808,-1000000.0,0.00052,50]
[406615582,1771974687817,-1000.0,0.00052054,2]
[406615583,1771974687826,-1000.0,0.00052054,2]
[406615584,1771974687836,-244.6255504,0.00052054,120]
[406615585,1771974687845,-265.74618937,0.00052054,120]
[406615586,1771974687854,-500.0,0.00052054,120]
[406615587,1771974687864,-1000.0,0.00052054,120]
[406615588,1771974687873,-724.19360865,0.00052054,120]
[406615589,1771974687882,-2372.52622547,0.000521,120]
[406615590,1771974687891,-1065.43,0.00052103,120]
[406615591,1771974687900,-195.05144527,0.00052164,2]
[406615592,1771974687909,-950.0,0.00052184,10]
[406615593,1771974687921,-154.0,0.000523,120]
[406615594,1771974687931,-1000.0,0.00052328,2]
[406615595,1771974687940,-1000.0,0.00052328,2]
[406615596,1771974687949,-4413.43638385,0.00052345,60]
[406615597,1771974687958,-150.0,0.00052411,30]
[406615598,1771974687969,-600.0,0.00052452,60]
[406615599,1771974687978,-500.0,0.00052485,61]
[406615600,1771974687987,-1065.43,0.00052511,120]
[406615601,1771974687998,-1000.0,0.00052602,2]
[406615602,1771974688007,-1000.0,0.00052602,2]
[406615603,1771974688017,-1050.0,0.00052732,10]
[406615604,1771974688026,-1337.14,0.000528,120]
[406615605,1771974688035,-2328.2,0.000528,120]
[406615606,1771974688044,-154.0,0.000528,120]
[406615607,1771974688053,-680.96433576,0.00052875,60]
[406615608,1771974688062,-1000.0,0.00052876,2]
[406615609,1771974688071,-1065.43,0.00052919,120]
[406615610,1771974688080,-1000.0,0.00052999,120]
[406615611,1771974688089,-600.0,0.00053,60]
[406615612,1771974688098,-1211.28,0.00053,120]
[406615613,1771974688107,-150.0,0.00053,120]
[406615614,1771974688116,-1000000.0,0.00053,120]
[406615615,1771974688125,-1000000.0,0.00053,120]
[406615616,1771974688134,-2287.98,0.00053,30]
[406615617,1771974688143,-523.14726174,0.00053,120]
[406615618,1771974688152,-1928.30743404,0.00053,120]
[406615619,1771974688161,-404.41942575,0.00053,120]
[406615620,1771974688169,-150.0,0.00053,30]
[406615621,1771974688179,-159.58826812,0.00053,30]
[406615622,1771974688188,-159.46402897,0.00053,30]
[406615623,1771974688197,-150.0,0.00053,30]
[406615624,1771974688207,-167.20210228,0.00053,30]
[406615625,1771974688216,-151.93082519,0.00053,30]
[406615626,1771974688225,-297.10091231,0.00053,30]
[406615627,1771974688234,-150.0,0.00053,30]
[406615628,1771974688243,-152.21946448,0.00053,30]
[406615629,1771974688252,-154.8866515,0.00053,30]
[406615630,1771974688261,-677.16837713,0.00053,30]
[406615631,1771974688270,-153.05443218,0.00053,30]
[406615632,1771974688279,-677.16837713,0.00053,30]
[406615633,1771974688288,-150.0,0.00053,30]
[406615634,1771974688297,-432.33961091,0.00053,30]
[406615635,1771974688306,-2031.0,0.00053,120]
[406615636,1771974688316,-881.99485946,0.00053,30]
[406615637,1771974688325,-1016.0,0.00053,120]
[406615638,1771974688333,-712.05370142,0.00053,30]
[406615639,1771974688343,-712.05370142,0.00053,30]
[406615640,1771974688352,-368.16837712,0.00053,30]
[406615641,1771974688362,-152.0,0.00053073,20]
[406615642,1771974688371,-894.80795341,0.00053128,120]
[406615643,1771974688380,-1000.0,0.0005315,2]
[406615644,1771974688390,-150.0,0.00053247,2]
[406615645,1771974688399,-152.07548897,0.00053259,120]
[406615646,1771974688409,-1150.0,0.00053279,10]
[406615647,1771974688418,-1163.0,0.000533,120]
[406615648,1771974688427,-449.27490676,0.0005331,2]
[406615649,1771974688436,-1065.43,0.00053327,120]
[406615650,1771974688445,-515.0,0.00053381,20]
[406615651,1771974688455,-154.0,0.000534,120]
[406615652,1771974688464,-1000.0,0.00053424,2]
[406615653,1771974688474,-500.0,0.00053424,120]
[406615654,1771974688483,-3289091.35786013,0.000535,120]
[406615655,1771974688493,-5000000.0,0.000535,120]
[406615656,1771974688502,-5000000.0,0.000535,120]
[406615657,1771974688511,-200.5668252,0.000535,120]
[406615658,1771974688521,-946.19331922,0.00053541,30]
[406615659,1771974688530,-600.0,0.00053548,60]
[406615660,1771974688540,-549.3,0.0005358,120]
[406615661,1771974688550,-4000.0,0.0005362,81]
[406615662,1771974688560,-1065.43,0.00053735,120]
[406615663,1771974688569,-354.60349933,0.000538,120]
[406615664,1771974688578,-1250.0,0.00053827,10]
[406615665,1771974688587,-160.57910215,0.00053898,30]
[406615666,1771974688596,-6661.25369068,0.000539,120]
[406615667,1771974688606,-41354.5543452,0.000539,30]
[406615668,1771974688616,-39923.81900563,0.000539,120]
[406615669,1771974688625,-3571.0288064,0.000539,100]
[406615670,1771974688635,-12585.97911115,0.00053914,120]
[406615671,1771974688644,-549.3,0.0005396,120]
[406615672,1771974688654,-550.43,0.00053972,120]
[406615673,1771974688664,-193.1,0.00053988,120]
[406615674,1771974688674,-300.0,0.00054,120]
[406615675,1771974688683,-150.0,0.00054,120]
[406615676,1771974688693,-1000.0,0.00054,120]
[406615677,1771974688702,-2007.61113881,0.00054,120]
[406615678,1771974688712,-607.3436113,0.00054,30]
[406615679,1771974688721,-649.3701468,0.00054,120]
[406615680,1771974688731,-250000.0,0.00054,120]
[406615681,1771974688740,-2993.8958,0.00054,120]
[406615682,1771974688750,-797.55203448,0.00054,120]
[406615683,1771974688759,-4009.90024243,0.00054,120]
[406615684,1771974688768,-10000.000001,0.00054,120]
[406615685,1771974688778,-936.0,0.00054,120]
[406615686,1771974688787,-1000000.0,0.00054,88]
[406615687,1771974688796,-1000000.0,0.00054,88]
[406615688,1771974688805,-1000000.0,0.00054,88]
[406615689,1771974688815,-1000000.0,0.00054,90]
[406615690,1771974688824,-1000000.0,0.00054,90]
[406615691,1771974688834,-436639.29098085,0.00054,90]
[406615692,1771974689404,283.23017,0.00045733,120]
[406615693,1771974696345,-98500.0,8.794e-05,2]
[406615694,1771974729546,500.0,0.00045733,120]
[406615695,1771974734339,403.58208244,0.00045733,120]
[406615698,1771974744411,270.21221117,0.00045733,120]
[406615699,1771974769367,351.89668341,0.00045733,30]
[406615700,1771974771156,500.0,0.00045733,120]
[406615701,1771974771384,500.0,0.00045733,120]
[406615702,1771974771615,500.0,0.00045733,120]
[406615703,1771974771960,500.0,0.00045733,120]
[406615704,1771974772081,500.0,0.00045733,120]
[406615705,1771974772316,500.0,0.00045733,120]
[406615706,1771974772563,500.0,0.00045733,120]
[406615707,1771974772799,500.0,0.00045733,120]
[406615708,1771974773028,500.0,0.00045733,120]
[406615709,1771974773523,500.0,0.00045733,120]
[406615710,1771974773804,500.0,0.00045733,120]
[406615711,1771974774109,500.0,0.00045733,120]
[406615712,1771974774411,500.0,0.00045733,120]
[406615713,1771974774608,614.31912427,0.00045733,120]
[406615714,1771974784752,353.89994712,0.00045733,120]
[406615715,1771974811931,-300.0,8.792e-05,2]
[406615716,1771974811966,-150.0,8.793e-05,2]
[406615717,1771974811997,-350.0,8.793e-05,2]
[406615718,1771974812111,-1194.081714,8.794e-05,2]
[406615719,1771974812152,-10000.01,8.794e-05,2]
[406615720,1771974812276,-10000.01,8.794e-05,2]
[406615721,1771974812393,-10000.01,8.794e-05,2]
[406615722,1771974813218,-10000.01,8.794e-05,2]
[406615723,1771974815249,-10000.01,8.794e-05,2]
[406615724,1771974815392,-10000.01,8.794e-05,2]
[406615725,1771974815523,-10000.01,8.794e-05,2]
[406615726,1771974815659,-10000.01,8.794e-05,2]
[406615727,1771974820576,-10000.01,8.794e-05,2]
[406615728,1771974820789,-10000.01,8.794e-05,2]
[406615729,1771974820999,-10000.01,8.794e-05,2]
[406615730,1771974821174,-10000.01,8.794e-05,2]
[406615731,1771974821392,-10000.01,8.794e-05,2]
[406615732,1771974821593,-10000.01,8.794e-05,2]
[406615733,1771974821824,-10000.01,8.794e-05,2]
[406615734,1771974822036,-10000.01,8.794e-05,2]
[406615735,1771974822259,-10000.01,8.794e-05,2]
[406615736,1771974822687,500.0,0.00045733,120]
[406615737,1771974835543,569.76809954,0.00045733,120]
[406615738,1771974839666,-897.082086,8.794e-05,2]
[406615739,1771974839702,-500.0,8.794e-05,2]
[406615740,1771974839754,-7205.845828,8.794e-05,2]
[406615741,1771974839862,-10000.01,8.794e-05,2]
[406615742,1771974848582,-10000.01,8.794e-05,2]
[406615743,1771974848702,-10000.01,8.794e-05,2]
[406615744,1771975293570,2166.481,8.52e-05,2]
[406615745,1771975293632,267.165,8.52e-05,2]
[406615747,1771975382140,10000.01,8.594e-05,2]
[406615748,1771975382170,10000.01,8.594e-05,2]
[406615749,1771975382198,10000.01,8.594e-05,2]
[406615750,1771975382225,10000.01,8.594e-05,2]
[406615751,1771975382251,10000.01,8.594e-05,2]
[406615752,1771975382276,2566.364,8.594e-05,2]
[406615753,1771975382301,5000.01,8.594e-05,2]
[406615754,1771975382325,5000.01,8.594e-05,2]
[406615755,1771975382352,5000.01,8.594e-05,2]
[406615756,1771975382377,5000.01,8.594e-05,2]
[406615757,1771975382401,5000.01,8.594e-05,2]
[406615758,1771975382426,5000.01,8.594e-05,2]
[406615759,1771975382451,5000.01,8.594e-05,2]
[406615760,1771975382476,5000.01,8.594e-05,2]
[406615761,1771975390181,-10000.01,8.594e-05,2]
[406615762,1771975390394,-10000.01,8.594e-05,2]
[406615763,1771975390434,-10000.01,8.594e-05,2]
[406615764,1771975390603,-10000.01,8.594e-05,2]
[406615765,1771975390736,-10000.01,8.594e-05,2]
[406615766,1771975410497,-1200.0,8.593e-05,2]
[406615767,1771975410543,-410.03,8.594e-05,2]
[406615768,1771975410593,-5000.01,8.594e-05,2]
[406615769,1771975411381,-5000.01,8.594e-05,2]
[406615770,1771975411773,-5000.01,8.594e-05,2]
[406615771,1771975414425,-5000.01,8.594e-05,2]
[406615772,1771975421470,5000.01,8.494e-05,2]
[406615773,1771975421491,3883.9475573,8.494e-05,2]
[406615775,1771975560593,1116.0624427,8e-05,2]
[406615776,1771975560619,5000.01,8e-05,2]
[406615777,1771975560641,5000.01,8e-05,2]
[406615778,1771975560662,3081.3100629,8e-05,2]
[406615779,1771975645208,1005847.42519918,0.00045673,30]
[406615780,1771975714516,-7000000.0,0.00045673,30]
[406615781,1771975719173,-7000000.0,0.00045673,30]
[406615783,1771975722991,-7000000.0,0.00045673,30]
[406615784,1771975737115,-9000000.0,0.00045673,30]
[406615785,1771975803497,-300.0,8.592e-05,2]
[406615786,1771975803527,-1200.0,8.592e-05,2]
[406615787,1771975803554,-250.0,8.592e-05,2]
[406615788,1771975803580,-500.0,8.593e-05,2]
[406615789,1771975803609,-500.0,8.593e-05,2]
[406615790,1771975803635,-395.65601364,8.593e-05,2]
[406615791,1771975803660,-500.0,8.593e-05,2]
[406615792,1771975803685,-563.14702534,8.593e-05,2]
[406615793,1771975803709,-500.0,8.593e-05,2]
[406615794,1771975803734,-500.0,8.593e-05,2]
[406615795,1771975803763,-500.0,8.593e-05,2]
[406615796,1771975803794,-500.0,8.593e-05,2]
[406615797,1771975803819,-804.55,8.593e-05,2]
[406615798,1771975803844,-150.0,8.593e-05,2]
[406615799,1771975803869,-250.0,8.593e-05,2]
[406615800,1771975803894,-4132.3953,8.594e-05,2]
[406615801,1771975803919,-31840.5201,8.594e-05,2]
[406615802,1771975803943,-613.73156102,8.594e-05,2]
[406615803,1771975803976,150.0,0.00011418,7]
[406615822,1771975831289,-175.0,8.592e-05,2]
[406615823,1771975831300,-250.0,8.593e-05,2]
[406615824,1771975831310,-307.08276602,8.594e-05,2]
[406615825,1771975831321,-916.35022247,8.594e-05,2]
[406615826,1771975831331,-500.0,8.684e-05,2]
[406615827,1771975831340,-10000.0,8.694e-05,2]
[406615828,1771975831354,-558.02622135,8.694e-05,2]
[406615829,1771975831366,-299.99,8.793e-05,2]
[406615830,1771975831375,-720.0,8.793e-05,2]
[406615831,1771975831385,-155.0,8.793e-05,2]
[406615832,1771975831394,-999.99,8.793e-05,2]
[406615833,1771975831404,-9999.99,8.793e-05,2]
[406615834,1771975831414,-9999.99,8.793e-05,2]
[406615835,1771975831423,-150.99,8.793e-05,2]
[406615836,1771975831433,-804.55,8.867e-05,2]
[406615837,1771975831443,-500.0,8.899e-05,2]
[406615838,1771975831452,-500.0,8.899e-05,2]
[406615839,1771975831462,-500.0,8.899e-05,2]
[406615840,1771975831471,-500.0,8.899e-05,2]
[406615841,1771975831480,-500.0,8.899e-05,2]
[406615842,1771975831490,-500.0,8.899e-05,2]
[406615843,1771975831500,-500.0,8.899e-05,2]
[406615844,1771975831509,-500.0,8.899e-05,2]
[406615845,1771975831519,-500.0,8.899e-05,2]
[406615846,1771975831528,-500.0,8.899e-05,2]
[406615847,1771975831538,-500.0,8.899e-05,2]
[406615848,1771975831551,-500.0,8.899e-05,2]
[406615849,1771975831560,-500.0,8.899e-05,2]
[406615850,1771975831570,-500.0,8.899e-05,2]
[406615851,1771975831579,-500.0,8.899e-05,2]
[406615852,1771975831589,-500.0,8.899e-05,2]
[406615853,1771975831598,-500.0,8.899e-05,2]
[406615854,1771975831608,-500.0,8.899e-05,2]
[406615855,1771975831618,-500.0,8.899e-05,2]
[406615856,1771975831628,-153.99812038,8.899e-05,2]
[406615857,1771975831637,-500.0,8.899e-05,2]
[406615858,1771975831647,-500.0,8.899e-05,2]
[406615859,1771975831657,-500.0,8.899e-05,2]
[406615860,1771975831667,-500.0,8.899e-05,2]
[406615861,1771975831676,-500.0,8.899e-05,2]
[406615862,1771975831686,-500.0,8.899e-05,2]
[406615863,1771975831696,-500.0,8.899e-05,2]
[406615864,1771975831705,-500.0,8.899e-05,2]
[406615865,1771975831715,-500.0,8.899e-05,2]
[406615866,1771975831724,-500.0,8.899e-05,2]
[406615867,1771975831733,-500.0,8.899e-05,2]
[406615868,1771975831745,-500.0,8.899e-05,2]
[406615869,1771975831755,-500.0,8.899e-05,2]
[406615870,1771975831764,-500.0,8.899e-05,2]
[406615871,1771975831774,-500.0,8.899e-05,2]
[406615872,1771975831783,-500.0,8.899e-05,2]
[406615873,1771975831793,-500.0,8.899e-05,2]
[406615874,1771975831804,-650.0,8.899e-05,2]
[406615875,1771975831814,-500.0,8.899e-05,2]
[406615876,1771975831823,-500.0,8.899e-05,2]
[406615877,1771975831832,-500.0,8.899e-05,2]
[406615878,1771975831841,-500.0,8.899e-05,2]
[406615879,1771975831851,-500.0,8.899e-05,2]
[406615880,1771975831860,-500.0,8.899e-05,2]
[406615881,1771975831870,-500.0,8.899e-05,2]
[406615882,1771975831880,-316395.3967765,8.9e-05,2]
[406615883,1771975831889,-189.49,8.925e-05,2]
[406615884,1771975831899,-804.55,9.141e-05,2]
[406615885,1771975831908,-804.55,9.415e-05,2]
[406615886,1771975831917,-1680.0,9.451e-05,2]
[406615887,1771975831927,-250.0,9.451e-05,2]
[406615888,1771975831939,-250.0,9.451e-05,2]
[406615889,1771975831948,-255.0,9.452e-05,2]
[406615890,1771975831957,-898.0,9.49e-05,2]
[406615891,1771975831966,-344.0,9.509e-05,2]
[406615892,1771975831975,-357.0,9.57e-05,2]
[406615893,1771975831984,-390.0,9.589e-05,2]
[406615894,1771975831993,-747.0,9.602e-05,2]
[406615895,1771975832003,-411.0,9.621e-05,2]
[406615896,1771975832012,-155.0,9.672e-05,2]
[406615897,1771975832020,-804.55,9.688e-05,2]
[406615898,1771975832030,-444.0,9.72e-05,2]
[406615899,1771975832039,-192.0,9.74e-05,2]
[406615900,1771975832050,-355.0,9.759e-05,2]
[406615901,1771975832060,-213.0,9.779e-05,2]
[406615902,1771975832070,-678.0,9.898e-05,2]
[406615903,1771975832080,-270.0,9.918e-05,2]
[406615904,1771975832090,-1725.0,9.937e-05,2]
[406615905,1771975832099,-1812.05985797,9.95e-05,2]
[406615906,1771975832109,-1509.0,9.957e-05,2]
[406615907,1771975832118,-804.55,9.962e-05,2]
[406615908,1771975832127,-1791.0,9.977e-05,2]
[406615909,1771975832137,-151.0,0.0001,2]
[406615910,1771975832146,-151.0,0.0001,2]
[406615911,1771975832155,-151.0,0.0001,2]
[406615912,1771975832165,-151.0,0.0001,2]
[406615913,1771975832174,-151.0,0.0001,2]
[406615914,1771975832184,-151.0,0.0001,2]
[406615915,1771975832194,-151.0,0.0001,2]
[406615916,1771975832204,-151.0,0.0001,2]
[406615917,1771975832214,-17304.57179588,0.00010178,2]
[406615918,1771975832254,-500.0,8.899e-05,2]
[406615919,1771975832263,-11843.61649768,0.00010178,2]
[406615920,1771975832276,-1700.99268707,0.00010178,2]
[406616151,1771975845679,-426.46,0.00010178,2]
[406616455,1771976113655,1190.02,7.2e-05,2]
[406616533,1771976172364,394.10151904,0.00012351,7]
[406616636,1771976209134,-9000000.0,0.00045673,30]
[406616637,1771976212679,-9000000.0,0.00045673,30]
[406616641,1771976216279,-9000000.0,0.00045673,30]
[406616654,1771976219834,-9000000.0,0.00045673,30]
[406616657,1771976223182,-447861.50296549,0.00045673,30]
[406616658,1771976223329,-20000.0,0.00045673,120]
[406616659,1771976223478,-5565.45412804,0.00045673,30]
[406616692,1771976264989,232.88285664,0.00012351,7]
[406617069,1771976557397,205.24,0.00045676,120]
[406617122,1771976673950,500.0,0.00045676,120]
[406617123,1771976674217,500.0,0.00045676,120]
[406617124,1771976674454,500.0,0.00045676,120]
[406617125,1771976674699,500.0,0.00045676,120]
[406617126,1771976674926,500.0,0.00045676,120]
[406617127,1771976675195,500.0,0.00045676,120]
[406617128,1771976675423,500.0,0.00045676,120]
[406617129,1771976675779,500.0,0.00045676,120]
[406617130,1771976676041,500.0,0.00045676,120]
[406617131,1771976676269,500.0,0.00045676,120]
[406617132,1771976676529,194.12995456,0.00045676,120]
[406617133,1771976703571,500.0,0.00045822,120]
[406617134,1771976703793,354.9,0.00045822,120]
[406617157,1771977031507,-814.47785732,9.206e-05,2]
[406617158,1771977031520,-1221.11909237,9.206e-05,2]
[406617159,1771977031586,-5900.03305031,9.206e-05,2]
[406617160,1771977031595,-1200.0,9.274e-05,2]
[406617161,1771977031607,-200.0,9.275e-05,2]
[406617162,1771977031616,-150.0,9.344e-05,2]
[406617163,1771977031625,-300.0,9.344e-05,2]
[406617164,1771977031639,-77321.89,9.345e-05,2]
[406617165,1771977031650,-250.0,9.523e-05,2]
[406617166,1771977031659,-819.59131425,9.523e-05,2]
[406617167,1771977031670,-250.0,9.7e-05,2]
[406617168,1771977031680,-211.71,9.7e-05,2]
[406617169,1771977031691,-356.669223,9.75e-05,2]
[406617170,1771977031701,-1000.0,9.828e-05,2]
[406617171,1771977031710,-2500.0,9.964e-05,2]
[406617172,1771977031723,-1056.79133189,9.968e-05,2]
[406617173,1771977031732,-507.56843165,9.968e-05,2]
[406617174,1771977031742,-10014.48390644,9.968e-05,2]
[406617176,1771977031751,-8692.42913998,9.968e-05,2]
[406617177,1771977031760,-3371.44411757,9.968e-05,2]
[406617178,1771977031772,-17190.01,9.979e-05,2]
[406617179,1771977031782,-275.0,0.0001,2]
[406617180,1771977031791,-275.0,0.0001,2]
[406617181,1771977031800,-1186.38821167,0.00010025,2]
[406617182,1771977031809,-92246.0,0.00010027,2]
[406617183,1771977031819,-9999.99,0.00010032,2]
[406617184,1771977031828,-9999.99,0.00010032,2]
[406617185,1771977031838,-728.02826163,0.00010054,2]
[406617186,1771977031847,-728.02826163,0.00010054,2]
[406617187,1771977031857,-19150.81663367,0.00010059,2]
[406617188,1771977031868,-500.0,0.00010063,2]
[406617189,1771977031878,-588.32885262,0.00010063,2]
[406617190,1771977031887,-326.95920955,0.00010063,2]
[406617191,1771977031898,-500.0,0.00010063,2]
[406617192,1771977031907,-500.0,0.00010063,2]
[406617193,1771977031917,-500.0,0.00010063,2]
[406617194,1771977031928,-500.0,0.00010063,2]
[406617195,1771977031937,-393.25005791,0.00010063,2]
[406617196,1771977031947,-571.74431762,0.00010063,2]
[406617197,1771977031956,-500.0,0.00010063,2]
[406617198,1771977031966,-500.0,0.00010063,2]
[406617199,1771977031976,-500.0,0.00010063,2]
[406617200,1771977031987,-500.0,0.00010063,2]
[406617201,1771977031996,-630.39981204,0.00010063,2]
[406617202,1771977032005,-34539.15011791,0.00010064,2]
[406617203,1771977032026,-707.55641487,0.00010064,2]
[406617213,1771977039677,-211.71,9.2e-05,2]
[406617214,1771977039686,-912.30073387,0.00010064,2]
[406617215,1771977039926,-3039938.00427557,0.00010064,2]
[406617216,1771977039938,-606.6000014,0.00010064,2]
[406617217,1771977039950,-20393.3999986,0.00010064,2]
[406617218,1771977039961,-2500.0,0.00010064,2]
[406617222,1771977045767,-10273.22842,0.00010064,2]
[406617223,1771977155555,1852.0,0.00045822,30]
[406617224,1771977324004,1673.37,6.105e-05,2]
[406617225,1771977324282,1673.37,6.319e-05,2]
[406617226,1771977324501,1673.37,6.534e-05,2]
[406617227,1771977324698,1673.37,6.748e-05,2]